lending/lending_fUSD_20240731
["ID","MTS","AMOUNT","RATE_DAILY","PERIOD"]
[333721958,1722408289027,-1237.2,0.00044383,120]
[333721959,1722408289060,-472.88502978,0.00044383,120]
[333721960,1722408289093,-500.0,0.00044383,120]
[333721961,1722408289126,-500.0,0.00044383,120]
[333721962,1722408289159,-500.0,0.00044383,120]
[333721963,1722408289191,-1091.36,0.00044383,120]
[333721964,1722408289226,-10565.72,0.00044383,120]
[333721965,1722408289259,-2718.2,0.00044383,120]
[333721966,1722408289501,-1716.34,0.00044383,120]
[333721967,1722408289538,-500.0,0.00044383,120]
[333721968,1722408289572,-500.0,0.00044383,120]
[333721969,1722408289607,-500.0,0.00044383,120]
[333721970,1722408289644,-500.0,0.00044383,120]
[333721971,1722408289678,-500.0,0.00044383,120]
[333721972,1722408289712,-628.08,0.00044383,120]
[333721973,1722408289746,-500.0,0.00044383,120]
[333721974,1722408289781,-636.34,0.00044383,120]
[333721975,1722408289816,-500.0,0.00044383,120]
[333721976,1722408289849,-500.0,0.00044383,120]
[333721977,1722408289887,-1000.0,0.00044383,120]
[333721978,1722408289922,-500.0,0.00044383,120]
[333721979,1722408289956,-916.06,0.00044383,120]
[333721980,1722408289989,-500.0,0.00044383,120]
[333721981,1722408290025,-500.68,0.00044383,120]
[333721982,1722408290062,-4839.01,0.00044383,120]
[333721983,1722408290097,-814.5,0.00044383,120]
[333721984,1722408290138,-1127.97,0.00044383,120]
[333721985,1722408290174,-500.0,0.00044383,120]
[333721986,1722408290210,-536.60938136,0.00044383,120]
[333721987,1722408290246,-1101.7,0.00044383,120]
[333721988,1722408290281,-3171.27,0.00044383,120]
[333721989,1722408290314,-500.0,0.00044383,120]
[333721990,1722408290348,-1085.77,0.00044383,120]
[333721991,1722408290383,-500.0,0.00044383,120]
[333721992,1722408290416,-500.0,0.00044383,120]
[333721993,1722408290451,-1269.58,0.00044383,120]
[333721994,1722408290485,-527.72,0.00044383,120]
[333721995,1722408290519,-735.12,0.00044383,120]
[333721996,1722408290553,-830.45,0.00044383,120]
[333721997,1722408290587,-1213.79,0.00044383,120]
[333721998,1722408290622,-2199.24,0.00044383,120]
[333721999,1722408290655,-500.0,0.00044383,120]
[333722000,1722408290688,-742.16,0.00044383,120]
[333722001,1722408290721,-500.0,0.00044383,120]
[333722002,1722408290754,-558.71,0.00044383,120]
[333722003,1722408290788,-1171.99,0.00044383,120]
[333722004,1722408290822,-356.95,0.00044383,120]
[333722005,1722408290854,-652.55,0.00044383,120]
[333722006,1722408290889,-1614.98,0.00044383,120]
[333722007,1722408290923,-922.39,0.00044383,120]
[333722008,1722408290957,-775.47,0.00044383,120]
[333722009,1722408290990,-1727.29,0.00044383,120]
[333722010,1722408291023,-500.0,0.00044383,120]
[333722011,1722408291057,-766.34,0.00044383,120]
[333722012,1722408291090,-500.0,0.00044383,120]
[333722013,1722408291124,-667.38,0.00044383,120]
[333722014,1722408291158,-500.0,0.00044383,120]
[333722015,1722408291194,-1600.07,0.00044383,120]
[333722016,1722408291228,-500.0,0.00044383,120]
[333722017,1722408291266,-3645.86,0.00044383,120]
[333722018,1722408291300,-1706.51,0.00044383,120]
[333722019,1722408291334,-500.0,0.00044383,120]
[333722020,1722408291370,-500.0,0.00044383,120]
[333722021,1722408291404,-3634.42,0.00044383,120]
[333722022,1722408291438,-500.0,0.00044383,120]
[333722023,1722408291472,-650.03,0.00044383,120]
[333722024,1722408291504,-891.71,0.00044383,120]
[333722025,1722408291537,-500.0,0.00044383,120]
[333722026,1722408291570,-731.06,0.00044383,120]
[333722027,1722408291602,-500.0,0.00044383,120]
[333722028,1722408291634,-602.37147615,0.00044383,120]
[333722029,1722408291667,-1010.16,0.00044383,120]
[333722030,1722408291698,-548.12,0.00044383,120]
[333722031,1722408291730,-1120.16,0.00044383,120]
[333722032,1722408291763,-966.04,0.00044383,120]
[333722033,1722408291795,-500.0,0.00044383,120]
[333722034,1722408291828,-500.0,0.00044383,120]
[333722035,1722408291861,-500.0,0.00044383,120]
[333722036,1722408291895,-500.0,0.00044383,120]
[333722037,1722408291927,-552.83,0.00044383,120]
[333722038,1722408291958,-500.0,0.00044383,120]
[333722039,1722408291991,-504.73,0.00044383,120]
[333722040,1722408292023,-500.0,0.00044383,120]
[333722041,1722408292057,-961.72,0.00044383,120]
[333722042,1722408292090,-500.0,0.00044383,120]
[333722043,1722408292124,-500.0,0.00044383,120]
[333722044,1722408292157,-3018.05,0.00044383,120]
[333722045,1722408292191,-500.0,0.00044383,120]
[333722046,1722408292225,-562.83,0.00044383,120]
[333722047,1722408292257,-500.0,0.00044383,120]
[333722048,1722408292291,-500.0,0.00044383,120]
[333722049,1722408292325,-514.17,0.00044383,120]
[333722050,1722408292359,-2095.91,0.00044383,120]
[333722051,1722408292394,-500.0,0.00044383,120]
[333722052,1722408292428,-1504.39,0.00044383,120]
[333722053,1722408292464,-1559.63,0.00044383,120]
[333722054,1722408292497,-2645.88,0.00044383,120]
[333722055,1722408292529,-656.68,0.00044383,120]
[333722056,1722408292563,-500.0,0.00044383,120]
[333722057,1722408292596,-500.0,0.00044383,120]
[333722058,1722408292629,-506.93610869,0.00044383,120]
[333722059,1722408292663,-837.38,0.00044383,120]
[333722060,1722408292696,-500.0,0.00044383,120]
[333722061,1722408292728,-500.0,0.00044383,120]
[333722062,1722408292761,-1378.48,0.00044383,120]
[333722063,1722408292795,-534.97,0.00044383,120]
[333722064,1722408292828,-2724.22,0.00044383,120]
[333722065,1722408292860,-500.0,0.00044383,120]
[333722066,1722408292896,-300.47433916,0.00044383,120]
[333722067,1722408292928,-500.0,0.00044383,120]
[333722068,1722408292961,-2592.84,0.00044383,120]
[333722069,1722408292995,-3772.53,0.00044383,120]
[333722070,1722408293233,-500.0,0.00044383,120]
[333722071,1722408293269,-1325.58,0.00044383,120]
[333722072,1722408293304,-2771.65,0.00044383,120]
[333722073,1722408293340,-643.86,0.00044383,120]
[333722074,1722408293375,-500.0,0.00044383,120]
[333722075,1722408293409,-1216.71,0.00044383,120]
[333722076,1722408293445,-1917.75,0.00044383,120]
[333722077,1722408293480,-500.0,0.00044383,120]
[333722078,1722408293514,-1849.58,0.00044383,120]
[333722079,1722408293549,-662.07,0.00044383,120]
[333722080,1722408293583,-1824.68,0.00044383,120]
[333722081,1722408293617,-500.0,0.00044383,120]
[333722082,1722408293651,-1916.29,0.00044383,120]
[333722083,1722408293684,-500.0,0.00044383,120]
[333722084,1722408293718,-500.0,0.00044383,120]
[333722085,1722408293752,-1180.34,0.00044383,120]
[333722086,1722408293785,-500.0,0.00044383,120]
[333722087,1722408293819,-500.0,0.00044383,120]
[333722088,1722408293856,-2919.98,0.00044383,120]
[333722089,1722408293890,-500.0,0.00044383,120]
[333722090,1722408293923,-500.0,0.00044383,120]
[333722091,1722408293956,-500.0,0.00044383,120]
[333722092,1722408293988,-500.0,0.00044383,120]
[333722093,1722408294022,-1585.71,0.00044383,120]
[333722094,1722408294054,-500.0,0.00044383,120]
[333722095,1722408294087,-500.0,0.00044383,120]
[333722096,1722408294122,-1083.89,0.00044383,120]
[333722097,1722408294156,-500.0,0.00044383,120]
[333722098,1722408294190,-500.0,0.00044383,120]
[333722099,1722408294224,-1134.13,0.00044383,120]
[333722100,1722408294256,-500.0,0.00044383,120]
[333722101,1722408294289,-811.79,0.00044383,120]
[333722102,1722408294322,-1395.16,0.00044383,120]
[333722103,1722408294354,-500.0,0.00044383,120]
[333722104,1722408294387,-500.0,0.00044383,120]
[333722105,1722408294419,-500.0,0.00044383,120]
[333722106,1722408294456,-561.99,0.00044383,120]
[333722107,1722408294488,-500.0,0.00044383,120]
[333722108,1722408294522,-4315.29,0.00044383,120]
[333722109,1722408294559,-640.96,0.00044383,120]
[333722110,1722408294591,-1109.51,0.00044383,120]
[333722111,1722408294623,-500.0,0.00044383,120]
[333722112,1722408294655,-556.47,0.00044383,120]
[333722113,1722408294688,-556.0,0.00044383,120]
[333722114,1722408294721,-500.0,0.00044383,120]
[333722115,1722408294753,-982.35,0.00044383,120]
[333722116,1722408294785,-500.0,0.00044383,120]
[333722117,1722408294818,-537.84,0.00044383,120]
[333722118,1722408294851,-500.0,0.00044383,120]
[333722119,1722408294889,-500.0,0.00044383,120]
[333722120,1722408294920,-500.0,0.00044383,120]
[333722121,1722408294952,-508.29947243,0.00044383,120]
[333722122,1722408294984,-663.39,0.00044383,120]
[333722123,1722408295018,-500.0,0.00044383,120]
[333722124,1722408295052,-500.0,0.00044383,120]
[333722125,1722408295084,-500.0,0.00044383,120]
[333722126,1722408295118,-812.81,0.00044383,120]
[333722127,1722408295149,-364.25709049,0.00044383,120]
[333722128,1722408295183,-550.81,0.00044383,120]
[333722129,1722408295234,-1485.45,0.00044383,120]
[333722130,1722408295286,-500.0,0.00044383,120]
[333722131,1722408295342,-500.0,0.00044383,120]
[333722132,1722408295391,-500.0,0.00044383,120]
[333722133,1722408295446,-1212.6,0.00044383,120]
[333722134,1722408295493,-243.26854819,0.00044383,120]
[333722135,1722408295541,-1677.21,0.00044383,120]
[333722136,1722408295588,-1252.77,0.00044383,120]
[333722137,1722408295635,-307.32718513,0.00044383,120]
[333722138,1722408295683,-2203.32,0.00044383,120]
[333722139,1722408295731,-1241.82,0.00044383,120]
[333722140,1722408295780,-2111.06,0.00044383,120]
[333722141,1722408295828,-500.0,0.00044383,120]
[333722142,1722408295876,-500.0,0.00044383,120]
[333722143,1722408295925,-500.0,0.00044383,120]
[333722144,1722408295972,-500.0,0.00044383,120]
[333722145,1722408296020,-500.0,0.00044383,120]
[333722146,1722408296073,-500.0,0.00044383,120]
[333722147,1722408296123,-929.39,0.00044383,120]
[333722148,1722408296171,-500.0,0.00044383,120]
[333722149,1722408296221,-500.0,0.00044383,120]
[333722150,1722408296269,-1400.84,0.00044383,120]
[333722151,1722408296316,-500.0,0.00044383,120]
[333722152,1722408296364,-2810.79,0.00044383,120]
[333722153,1722408296413,-745.39,0.00044383,120]
[333722154,1722408296459,-500.0,0.00044383,120]
[333722155,1722408296505,-729.12,0.00044383,120]
[333722156,1722408296550,-500.0,0.00044383,120]
[333722157,1722408296594,-2747.42,0.00044383,120]
[333722158,1722408296639,-500.0,0.00044383,120]
[333722159,1722408296686,-1288.86,0.00044383,120]
[333722160,1722408296732,-2000.0,0.00044383,30]
[333722161,1722408296779,-500.0,0.00044383,120]
[333722162,1722408296823,-500.0,0.00044383,120]
[333722163,1722408296866,-500.0,0.00044383,120]
[333722164,1722408296910,-500.0,0.00044383,120]
[333722165,1722408296955,-500.0,0.00044383,120]
[333722166,1722408297003,-3293.78,0.00044383,120]
[333722167,1722408297049,-1035.44,0.00044383,120]
[333722168,1722408297094,-500.0,0.00044383,120]
[333722169,1722408297143,-5027.11,0.00044383,120]
[333722170,1722408297192,-500.0,0.00044383,120]
[333722171,1722408297238,-500.0,0.00044383,120]
[333722172,1722408297282,-500.0,0.00044383,120]
[333722173,1722408297325,-500.0,0.00044383,120]
[333722174,1722408297369,-500.0,0.00044383,120]
[333722175,1722408297412,-1169.74,0.00044383,120]
[333722176,1722408297455,-708.85,0.00044383,120]
[333722177,1722408297499,-500.0,0.00044383,120]
[333722178,1722408297542,-1765.8,0.00044383,120]
[333722179,1722408297584,-500.0,0.00044383,120]
[333722180,1722408297627,-500.0,0.00044383,120]
[333722181,1722408297673,-500.0,0.00044383,120]
[333722182,1722408297715,-500.0,0.00044383,120]
[333722183,1722408297760,-500.0,0.00044383,120]
[333722184,1722408297796,-744.28,0.00044383,120]
[333722185,1722408297830,-500.0,0.00044383,120]
[333722186,1722408298260,-500.0,0.00044383,120]
[333722187,1722408298297,-526.17294436,0.00044383,120]
[333722188,1722408298334,-500.0,0.00044383,120]
[333722189,1722408298371,-500.0,0.00044383,120]
[333722190,1722408298407,-500.0,0.00044383,120]
[333722191,1722408298442,-522.34,0.00044383,120]
[333722192,1722408298479,-2105.25,0.00044383,120]
[333722193,1722408298515,-500.0,0.00044383,120]
[333722194,1722408298551,-3566.5,0.00044383,120]
[333722195,1722408298586,-500.0,0.00044383,120]
[333722196,1722408298624,-500.0,0.00044383,120]
[333722197,1722408298662,-9736.19,0.00044383,120]
[333722198,1722408298697,-500.0,0.00044383,120]
[333722199,1722408298730,-579.47498993,0.00044383,120]
[333722200,1722408298763,-500.0,0.00044383,120]
[333722201,1722408298797,-1217.53,0.00044383,120]
[333722202,1722408298830,-500.0,0.00044383,120]
[333722203,1722408298863,-500.0,0.00044383,120]
[333722204,1722408298898,-500.0,0.00044383,120]
[333722205,1722408298934,-9161.82,0.00044383,120]
[333722206,1722408298967,-500.0,0.00044383,120]
[333722207,1722408299000,-500.0,0.00044383,120]
[333722208,1722408299033,-500.0,0.00044383,120]
[333722209,1722408299067,-500.0,0.00044383,120]
[333722210,1722408299101,-694.12,0.00044383,120]
[333722211,1722408299136,-500.0,0.00044383,120]
[333722212,1722408299170,-500.0,0.00044383,120]
[333722213,1722408299205,-500.0,0.00044383,120]
[333722214,1722408299239,-820.81,0.00044383,120]
[333722215,1722408299274,-2360.71,0.00044383,120]
[333722216,1722408299310,-535.54,0.00044383,120]
[333722217,1722408299346,-596.85949073,0.00044383,120]
[333722218,1722408299381,-500.0,0.00044383,120]
[333722219,1722408299415,-549.99,0.00044383,120]
[333722220,1722408299451,-500.0,0.00044383,120]
[333722221,1722408299486,-500.0,0.00044383,120]
[333722222,1722408299522,-514.23514346,0.00044383,120]
[333722223,1722408299555,-1314.32,0.00044383,120]
[333722224,1722408299588,-500.0,0.00044383,120]
[333722225,1722408299624,-500.0,0.00044383,120]
[333722226,1722408299657,-500.0,0.00044383,120]
[333722227,1722408299691,-1173.68,0.00044383,120]
[333722228,1722408299726,-924.82,0.00044383,120]
[333722229,1722408299763,-640.72,0.00044383,120]
[333722230,1722408299801,-1099.48,0.00044383,120]
[333722231,1722408299836,-500.0,0.00044383,120]
[333722232,1722408299876,-3579.08,0.00044384,120]
[333722233,1722408299910,-800.0,0.00044452,30]
[333722234,1722408299943,-1100.0,0.00044452,30]
[333722235,1722408299977,-1800.0,0.00044452,30]
[333722236,1722408300012,-4400.0,0.00044452,30]
[333722237,1722408300051,-5300.0,0.00044452,30]
[333722238,1722408300088,-22687.03747852,0.000445,90]
[333722239,1722408300125,-150.0,0.000445,30]
[333722240,1722408300161,-1999.0,0.0004452,120]
[333722241,1722408300207,-1999.0,0.00044657,120]
[333722242,1722408300262,-809.59,0.00044657,120]
[333722243,1722408300307,-500.0,0.00044657,120]
[333722244,1722408300345,-500.0,0.00044657,120]
[333722245,1722408300385,-500.0,0.00044657,120]
[333722246,1722408300424,-500.0,0.00044657,120]
[333722247,1722408300461,-500.0,0.00044657,120]
[333722248,1722408300500,-500.0,0.00044657,120]
[333722249,1722408300536,-500.0,0.00044657,120]
[333722250,1722408300572,-500.0,0.00044657,120]
[333722251,1722408300610,-1012.07,0.00044657,120]
[333722252,1722408300648,-500.0,0.00044657,120]
[333722253,1722408300684,-500.0,0.00044657,120]
[333722254,1722408300719,-500.0,0.00044657,120]
[333722255,1722408300753,-500.0,0.00044657,120]
[333722256,1722408300788,-500.0,0.00044657,120]
[333722257,1722408300822,-749.06,0.00044657,120]
[333722258,1722408300856,-1080.35,0.00044657,120]
[333722259,1722408300892,-500.0,0.00044657,120]
[333722260,1722408300926,-500.0,0.00044657,120]
[333722261,1722408300959,-500.0,0.00044657,120]
[333722262,1722408300992,-500.0,0.00044657,120]
[333722263,1722408301027,-500.0,0.00044657,120]
[333722264,1722408301061,-500.0,0.00044657,120]
[333722265,1722408301096,-500.0,0.00044657,120]
[333722266,1722408301132,-500.0,0.00044657,120]
[333722267,1722408301167,-500.0,0.00044657,120]
[333722268,1722408301204,-500.0,0.00044657,120]
[333722269,1722408301238,-500.0,0.00044657,120]
[333722270,1722408301273,-500.0,0.00044657,120]
[333722271,1722408301308,-500.0,0.00044657,120]
[333722272,1722408301344,-500.0,0.00044657,120]
[333722273,1722408301378,-892.88,0.00044657,120]
[333722274,1722408301413,-500.0,0.00044657,120]
[333722275,1722408301449,-524.98,0.00044657,120]
[333722276,1722408301483,-500.0,0.00044657,120]
[333722277,1722408301518,-601.25,0.00044657,120]
[333722278,1722408301553,-500.0,0.00044657,120]
[333722279,1722408301588,-500.0,0.00044657,120]
[333722280,1722408301624,-500.0,0.00044657,120]
[333722281,1722408301662,-500.0,0.00044657,120]
[333722282,1722408301698,-500.0,0.00044657,120]
[333722283,1722408301733,-500.0,0.00044657,120]
[333722284,1722408301766,-500.0,0.00044657,120]
[333722285,1722408302023,-502.64137999,0.00044657,120]
[333722286,1722408302061,-500.0,0.00044657,120]
[333722287,1722408302096,-500.0,0.00044657,120]
[333722288,1722408302132,-500.0,0.00044657,120]
[333722289,1722408302166,-777.39,0.00044657,120]
[333722290,1722408302200,-500.0,0.00044657,120]
[333722291,1722408302234,-601.92,0.00044657,120]
[333722292,1722408302267,-525.51,0.00044657,120]
[333722293,1722408302303,-500.0,0.00044657,120]
[333722294,1722408302337,-1956.03,0.00044657,120]
[333722295,1722408302372,-500.0,0.00044657,120]
[333722296,1722408302405,-500.0,0.00044657,120]
[333722297,1722408302442,-500.0,0.00044657,120]
[333722298,1722408302479,-500.0,0.00044657,120]
[333722299,1722408302511,-2418.8,0.00044657,120]
[333722300,1722408302545,-500.0,0.00044657,120]
[333722301,1722408302578,-500.0,0.00044657,120]
[333722302,1722408302611,-500.0,0.00044657,120]
[333722303,1722408302644,-500.0,0.00044657,120]
[333722304,1722408302676,-500.0,0.00044657,120]
[333722305,1722408302708,-500.0,0.00044657,120]
[333722306,1722408302742,-974.15,0.00044657,120]
[333722307,1722408302775,-500.0,0.00044657,120]
[333722308,1722408302811,-1315.36,0.00044657,120]
[333722309,1722408302844,-500.0,0.00044657,120]
[333722310,1722408302879,-537.39,0.00044657,120]
[333722311,1722408302911,-500.0,0.00044657,120]
[333722312,1722408302944,-1485.9,0.00044657,120]
[333722313,1722408302977,-834.44,0.00044657,120]
[333722314,1722408303013,-571.25,0.00044657,120]
[333722315,1722408303052,-500.0,0.00044657,120]
[333722316,1722408303096,-500.0,0.00044657,120]
[333722317,1722408303145,-500.0,0.00044657,120]
[333722318,1722408303187,-500.0,0.00044657,120]
[333722319,1722408303228,-500.0,0.00044657,120]
[333722320,1722408303271,-1001.53,0.00044657,120]
[333722321,1722408303315,-990.69,0.00044657,120]
[333722322,1722408303356,-502.28851893,0.00044657,120]
[333722323,1722408303399,-1459.65,0.00044657,120]
[333722324,1722408303442,-500.0,0.00044657,120]
[333722325,1722408303483,-500.0,0.00044657,120]
[333722326,1722408303522,-500.0,0.00044657,120]
[333722327,1722408303562,-1167.38,0.00044657,120]
[333722328,1722408303602,-500.0,0.00044657,120]
[333722329,1722408303642,-500.0,0.00044657,120]
[333722330,1722408303680,-804.86,0.00044657,120]
[333722331,1722408303721,-500.0,0.00044657,120]
[333722332,1722408303765,-1591.08,0.00044657,120]
[333722333,1722408303806,-500.0,0.00044657,120]
[333722334,1722408303846,-500.0,0.00044657,120]
[333722335,1722408303890,-762.19,0.00044657,120]
[333722336,1722408303933,-500.0,0.00044657,120]
[333722337,1722408303973,-548.29,0.00044657,120]
[333722338,1722408304014,-500.0,0.00044657,120]
[333722339,1722408304056,-647.54,0.00044657,120]
[333722340,1722408304096,-500.0,0.00044657,120]
[333722341,1722408304136,-500.0,0.00044657,120]
[333722342,1722408304177,-500.0,0.00044657,120]
[333722343,1722408304218,-500.0,0.00044657,120]
[333722344,1722408304257,-500.0,0.00044657,120]
[333722345,1722408304299,-500.0,0.00044657,120]
[333722346,1722408304338,-500.0,0.00044657,120]
[333722347,1722408304380,-1601.94,0.00044657,120]
[333722348,1722408304420,-639.66,0.00044657,120]
[333722349,1722408304460,-808.73,0.00044657,120]
[333722350,1722408304499,-544.46,0.00044657,120]
[333722351,1722408304538,-500.0,0.00044657,120]
[333722352,1722408304578,-1015.61,0.00044657,120]
[333722353,1722408304618,-500.0,0.00044657,30]
[333722354,1722408304661,-500.0,0.00044657,120]
[333722355,1722408304702,-608.97,0.00044657,120]
[333722356,1722408304742,-500.0,0.00044657,120]
[333722357,1722408304780,-2194.78,0.00044657,120]
[333722358,1722408304820,-500.0,0.00044657,120]
[333722359,1722408304860,-500.0,0.00044657,120]
[333722360,1722408304901,-1402.78,0.00044657,120]
[333722361,1722408304939,-500.0,0.00044657,120]
[333722362,1722408304978,-1191.54,0.00044657,120]
[333722363,1722408305016,-399.52081538,0.00044657,120]
[333722364,1722408305055,-500.0,0.00044657,120]
[333722365,1722408305094,-500.0,0.00044657,120]
[333722366,1722408305132,-500.0,0.00044657,120]
[333722367,1722408305171,-500.0,0.00044657,120]
[333722368,1722408305212,-525.55836665,0.00044657,120]
[333722369,1722408305250,-548.11,0.00044657,120]
[333722370,1722408305288,-500.0,0.00044657,120]
[333722371,1722408305325,-500.0,0.00044657,120]
[333722372,1722408305365,-1830.55,0.00044657,120]
[333722373,1722408305403,-572.98,0.00044657,120]
[333722374,1722408305441,-509.48961342,0.00044657,120]
[333722375,1722408305480,-1725.18,0.00044657,120]
[333722376,1722408305518,-500.0,0.00044657,120]
[333722377,1722408305555,-780.28,0.00044657,120]
[333722378,1722408305593,-1023.79,0.00044657,120]
[333722379,1722408305631,-500.0,0.00044657,120]
[333722380,1722408305668,-500.0,0.00044657,120]
[333722381,1722408305706,-716.91,0.00044657,120]
[333722382,1722408305744,-500.0,0.00044657,120]
[333722383,1722408305781,-500.0,0.00044657,120]
[333722384,1722408305817,-507.07,0.00044657,120]
[333722385,1722408305854,-500.0,0.00044657,120]
[333722386,1722408305893,-500.0,0.00044657,120]
[333722387,1722408305930,-751.99,0.00044657,120]
[333722388,1722408305968,-500.0,0.00044657,120]
[333722389,1722408306006,-500.0,0.00044657,120]
[333722390,1722408306248,-500.0,0.00044657,120]
[333722391,1722408306290,-500.0,0.00044657,120]
[333722392,1722408306327,-500.0,0.00044657,120]
[333722393,1722408306365,-957.83,0.00044657,120]
[333722394,1722408306403,-500.0,0.00044657,120]
[333722395,1722408306440,-500.0,0.00044657,120]
[333722396,1722408306478,-500.0,0.00044657,120]
[333722397,1722408306514,-500.0,0.00044657,120]
[333722398,1722408306551,-2783.89,0.00044657,120]
[333722399,1722408306589,-500.0,0.00044657,120]
[333722400,1722408306633,-517.61,0.00044657,120]
[333722401,1722408306671,-1429.89,0.00044657,120]
[333722402,1722408306707,-2890.73,0.00044657,120]
[333722403,1722408306744,-500.0,0.00044657,120]
[333722404,1722408306780,-1302.02,0.00044657,120]
[333722405,1722408306816,-500.0,0.00044657,120]
[333722406,1722408306854,-500.0,0.00044657,120]
[333722407,1722408306889,-500.0,0.00044657,120]
[333722408,1722408306926,-608.84377672,0.00044657,120]
[333722409,1722408306965,-500.0,0.00044657,120]
[333722410,1722408307003,-745.96,0.00044657,120]
[333722411,1722408307046,-6835.07,0.00044657,120]
[333722412,1722408307085,-500.0,0.00044657,120]
[333722413,1722408307131,-1812.2,0.00044657,120]
[333722414,1722408307175,-3008.35,0.00044657,120]
[333722415,1722408307214,-500.0,0.00044657,120]
[333722416,1722408307256,-528.41,0.00044657,120]
[333722417,1722408307297,-500.0,0.00044657,120]
[333722418,1722408307336,-605.31,0.00044657,120]
[333722419,1722408307378,-561.58,0.00044657,120]
[333722420,1722408307419,-735.42,0.00044657,120]
[333722421,1722408307466,-755.15,0.00044657,120]
[333722422,1722408307509,-2210.28,0.00044657,120]
[333722423,1722408307547,-1758.5,0.00044657,120]
[333722424,1722408307583,-811.29,0.00044657,120]
[333722425,1722408307620,-500.0,0.00044657,120]
[333722426,1722408307661,-500.0,0.00044657,120]
[333722427,1722408307699,-500.0,0.00044657,120]
[333722428,1722408307736,-766.29,0.00044657,120]
[333722429,1722408307778,-500.0,0.00044657,120]
[333722430,1722408307817,-2182.13,0.00044657,120]
[333722431,1722408307855,-662.67,0.00044657,120]
[333722432,1722408307893,-500.0,0.00044657,120]
[333722433,1722408307931,-192.07115626,0.00044657,120]
[333722434,1722408307968,-500.0,0.00044657,120]
[333722435,1722408308005,-500.0,0.00044657,120]
[333722436,1722408308044,-581.13,0.00044657,120]
[333722437,1722408308082,-500.0,0.00044657,120]
[333722438,1722408308126,-500.0,0.00044657,120]
[333722439,1722408308163,-521.45551965,0.00044657,120]
[333722440,1722408308201,-500.0,0.00044657,120]
[333722441,1722408308241,-500.0,0.00044657,120]
[333722442,1722408308280,-500.0,0.00044657,120]
[333722443,1722408308319,-500.0,0.00044657,120]
[333722444,1722408308360,-628.83,0.00044657,120]
[333722445,1722408308401,-572.92,0.00044657,120]
[333722446,1722408308440,-500.0,0.00044657,120]
[333722447,1722408308480,-3052.94,0.00044657,120]
[333722448,1722408308518,-1029.4,0.00044657,120]
[333722449,1722408308555,-500.0,0.00044657,120]
[333722450,1722408308596,-2476.98,0.00044657,120]
[333722451,1722408308636,-1397.97,0.00044657,120]
[333722452,1722408308675,-3062.94,0.00044657,120]
[333722453,1722408308715,-500.0,0.00044657,120]
[333722454,1722408308757,-4721.93,0.00044657,120]
[333722455,1722408308794,-500.0,0.00044657,120]
[333722456,1722408308832,-500.0,0.00044657,120]
[333722457,1722408308871,-1434.58,0.00044657,120]